[Event "Presidents Day IM-Norm 2024"]
[Site "Santa Clara"]
[Date "2024.02.17"]
[Round "4.4"]
[White "Rodi, Luis Ernesto"]
[Black "Vatsal Singhania"]
[Result "0-1"]
[ECO "B57"]
[WhiteElo "2196"]
[BlackElo "2252"]
[Annotator "RC"]
[PlyCount "70"]
[EventDate "2024.02.13"]
[EventType "tourn"]
[EventCountry "USA"]
[SourceTitle "playchess.com"]
[Source "ChessBase"]
[SourceQuality "1"]
[TimeControl "5400+30"]

1. e4 {[%emt 0:03:35]} c5 {[%emt 0:00:03]} 2. Nf3 {[%emt 0:00:09]} d6 {[%emt 0:00:07]} 3. d4 {[%emt 0:00:05]} cxd4 {[%emt 0:00:02]} 4. Nxd4 {[%emt 0:00:08]} Nf6 {[%emt 0:00:02]} 5. Nc3 {[%emt 0:00:08]} Nc6 {[%emt 0:00:05]} 6. Bc4 {[%emt 0:00:07]} Qb6 {[%emt 0:00:29]} 7. Nb3 {[%emt 0:00:27]} a6 {[%emt 0:02:21]} 8. O-O {[%emt 0:01:24]} e6 {[%emt 0:00:31]} 9. a4 {[%emt 0:00:06]} Qc7 {[%emt 0:01:49]} 10. a5 {[%emt 0:00:14]} Nb4 {[%emt 0:08:53]} 11. Be2 {[%emt 0:06:29]} d5 {[%emt 0:00:34]} 12. exd5 {[%emt 0:00:26]} Nbxd5 {[%emt 0:03:32]} 13. Nxd5 {[%emt 0:00:53]} Nxd5 {[%emt 0:01:23]} 14. Bf3 {[%emt 0:00:33]} Bd6 {[%emt 0:00:47]} 15. g3 {[%emt 0:06:38]} O-O {[%emt 0:00:09]} 16. Qe2 {[%emt 0:01:28]} Nb4 {[%emt 0:09:42]} 17. c4 {[%emt 0:15:32]} e5 {[%emt 0:00:18]} 18. Be3 {[%emt 0:01:44]} Be6 {[%emt 0:00:33]} 19. Rfc1 {[%emt 0:00:35]} Rac8 {[%emt 0:05:18]} 20. Bb6 {[%emt 0:02:35]} Qe7 {[%emt 0:02:50]} 21. Rc3 {[%emt 0:04:36]} f5 {[%emt 0:03:29]} 22. Bg2 {[%emt 0:02:43]} Nc6 {[%emt 0:14:21]} 23. Rcc1 {[%emt 0:01:17]} Kh8 {[%emt 0:04:59]} 24. Rd1 {[%emt 0:03:00]} e4 {[%emt 0:08:27]} 25. Rac1 {[%emt 0:14:14]} Ne5 {[%emt 0:02:22]} 26. c5 {[%emt 0:00:22]} Bxb3 {[%emt 0:01:11]} 27. cxd6 {[%emt 0:00:46]} Qd7 {[%emt 0:00:09]} 28. Bc7 {[%emt 0:05:39]} Bxd1 {[%emt 0:01:26]} 29. Qxd1 {[%emt 0:00:12]} Nd3 {[%emt 0:02:58]} 30. Rc3 {[%emt 0:00:37]} Rf6 {[%emt 0:01:20]} 31. Qb3 {[%emt 0:02:29]} Re8 {[%emt 0:06:00]} 32. Qd5 {[%emt 0:08:11]} f4 {[%emt 0:03:11]} 33. Bxe4 {[%emt 0:06:12]} fxg3 {[%emt 0:00:27]} 34. Rxd3 {[%emt 0:00:21]} gxf2+ {[%emt 0:00:05]} 35. Kf1 {[%emt 0:00:08]} Qg4 {[%emt 0:00:13]} 0-1

[Event "Presidents Day IM-Norm 2024"]
[Site "Santa Clara"]
[Date "2024.02.17"]
[Round "4.5"]
[White "Bansal, Advay"]
[Black "Raja Harshit"]
[Result "1/2-1/2"]
[ECO "B72"]
[WhiteElo "2253"]
[BlackElo "2508"]
[Annotator "TA"]
[PlyCount "87"]
[EventDate "2024.02.13"]
[EventType "tourn"]
[EventCountry "USA"]
[SourceTitle "playchess.com"]
[Source "ChessBase"]
[SourceQuality "1"]
[TimeControl "5400+30"]

{[%evp 14,87,25,13,31,24,40,0,0,0,0,12,22,3,11,25,39,3,99,7,71,0,0,0,0,-25,-29,-12,-26,-40,-37,-47,-27,-123,-129,-120,-116,-122,-112,-127,-62,-60,0,0,53,42,131,178,147,190,179,83,91,56,67,60,60,0,271,268,291,277,302,0,0,0,0,0,0,0,0,0,0,0,0,0]} 1. e4 {[%emt 0:00:01]} c5 {[%emt 0:02:03]} 2. Nf3 {[%emt 0:00:11]} d6 {[%emt 0:00:04]} 3. d4 {[%emt 0:00:08]} cxd4 {[%emt 0:00:06]} 4. Nxd4 {[%emt 0:00:08]} Nf6 {[%emt 0:00:12]} 5. Nc3 {[%emt 0:00:06]} a6 {[%emt 0:00:11]} 6. Bd3 {[%emt 0:00:09]} g6 {[%emt 0:00:17]} 7. f3 {[%emt 0:00:21]} Bg7 {[%emt 0:00:10]} 8. Be3 {[%emt 0:00:27]} Nbd7 {[%emt 0:00:15]} 9. Qd2 {[%emt 0:05:26]} b5 {[%emt 0:00:06]} 10. a4 {[%emt 0:01:38]} b4 {[%emt 0:00:22]} 11. Na2 {[%emt 0:00:08]} d5 $1 {[%emt 0:03:32]} 12. exd5 {[%emt 0:00:20]} Nxd5 {[%emt 0:01:00]} 13. Nxb4 {[%emt 0:00:07]} Nxe3 {[%emt 0:09:03]} 14. Qxe3 {[%emt 0:00:15] Threatens to win with Ndc6.} O-O {[%emt 0:01:16]} 15. c3 {[%emt 0:06:35] Black is weak on the light squares} Qc7 {[%emt 0:06:11]} (15... Bb7 $11) 16. O-O {[%emt 0:15:36]} (16. Nd5 $16 Qd6 17. Nxe7+ Kh8 18. Nxc8 Rfxc8 19. O-O) 16... Bb7 {[%emt 0:01:09]} (16... e6 $11) 17. a5 {[%emt 0:02:09]} (17. Qxe7 $16 Rfe8 18. Qh4) 17... Nc5 $11 {[%emt 0:01:23]} 18. Bc4 {[%emt 0:06:15][%cal Od4c6]} e6 {[%emt 0:01:24]} 19. Nb3 {[%emt 0:07:54]} Nxb3 {[%emt 0:05:27]} 20. Bxb3 {[%emt 0:00:10]} Be5 {[%emt 0:00:17]} 21. f4 {[%emt 0:04:16]} Bd6 {[%emt 0:00:09] This pair of bishops is nice.} 22. Kh1 {[%emt 0:03:09][%cal Of4f5]} Rfd8 {[%emt 0:02:54]} 23. Nd3 {[%emt 0:10:10] [#]} (23. Rad1 $11) 23... Bxg2+ $1 $17 {[%emt 0:00:54][%mdl 512]} 24. Kxg2 {[%emt 0:01:06]} Qb7+ {[%emt 0:00:04]} 25. Qf3 {[%emt 0:03:03]} Qxb3 {[%emt 0:00:10]} 26. Rf2 {[%emt 0:00:40]} Bc7 {[%emt 0:05:14]} (26... Ra7 $17 27. Qc6 Qb8) 27. Nb4 $15 {[%emt 0:01:57]} Rac8 {[%emt 0:14:16]} (27... Kf8 $15) 28. Qe2 $1 $11 {[%emt 0:12:00]} e5 {[%emt 0:08:42]} 29. fxe5 $14 {[%emt 0:03:17]} Re8 {[%emt 0:03:24]} ({Black should try} 29... Qe6 $14) 30. Qxa6 $16 {[%emt 0:01:33]} Bxe5 {[%emt 0:04:04]} 31. Qb7 {[%emt 0:05:13]} Qe6 {[%emt 0:04:49]} 32. a6 {[%emt 0:00:51] Active counter play!} (32. Qd5 $18 {and White stays clearly on top.}) 32... Bd6 {[%emt 0:02:02]} 33. a7 {[%emt 0:02:53]} Bc5 $1 {[%emt 0:01:49]} 34. Rff1 {[%emt 0:03:25][%cal Oa1e1] Rae1! would now be deadly. The board is on fire.} (34. a8=B $2 Qg4+ 35. Kf1 Bxf2 36. Kxf2 Re2+ 37. Kf1 Rxb2 $19) (34. a8=Q Rxa8 35. Rxa8 Qg4+ 36. Kf1 (36. Kh1 Bxf2 37. Rxe8+ Kg7 $19) 36... Qh3+ 37. Kg1 Bxf2+ 38. Kxf2 Qe3+ (38... Qxh2+ 39. Kf1 $11) 39. Kf1 Qc1+ 40. Kg2 Qxb2+ 41. Kh1 Qc1+ 42. Kg2 Qd2+ 43. Kf1 Qe2+ 44. Kg1 Qe3+ 45. Kg2 Qd2+ 46. Kf1 Qe2+ 47. Kg1 Qe1+ 48. Kg2 Qe2+ 49. Kg1 $11) 34... Rcd8 {[%emt 0:03:53] ( -> ...Rd2+)} 35. Kh1 {[%emt 0:01:49]} ({But not} 35. a8=R Rd2+ 36. Kh1 Rxh2+ 37. Kxh2 Qe5+ 38. Kh3 Qh5+ 39. Kg3 Qg5+ 40. Kh3 Qh5+ 41. Kg3 Qg5+ 42. Kh3 Qh6+ 43. Kg2 Qg5+ 44. Kh3 $11) ({Better is} 35. Qf3 $1 $14 Qe2+ 36. Qxe2 Rxe2+ 37. Kf3 Re3+ 38. Kf4) 35... Rd2 $2 {[%emt 0:02:00][%mdl 8192] [#]} (35... Ra8 $11 {and Black is okay.}) 36. Qf3 $1 $18 {[%emt 0:02:46]} (36. a8=B {gets mated.} Rxh2+ (36... Bd6 37. Qf3 $11) 37. Kxh2 Qe5+ 38. Kh3 Qh5+ 39. Kg3 Qg5+ 40. Kh3 Qh6+ 41. Kg4 f5+) 36... Bxa7 {[%emt 0:04:27]} 37. Rxa7 {[%emt 0:00:03]} Rf8 {[%emt 0:00:01]} 38. Rf2 $2 {[%emt 0:01:54]} (38. b3 $18) 38... Rxf2 $1 $11 {[%emt 0:00:43] The position is equal.} 39. Qxf2 {[%emt 0:00:02] Hoping for Ra1.} Qe4+ {[%emt 0:00:48]} 40. Kg1 {[%emt 0:00:22] aiming for Ra1.} Qg4+ {[%emt 0:00:17]} 41. Kf1 {[%emt 0:01:02] Strongly threatening Re7.} Qd1+ $1 {[%emt 0:00:17]} 42. Qe1 {[%emt 0:00:38]} Qf3+ {[%emt 0:00:15]} 43. Kg1 {[%emt 0:00:45] Re7 is the strong threat.} Qg4+ $1 {[%emt 0:00:55]} 44. Kh1 {[%emt 0:00:49] Weighted Error Value: White=0.33/Black=0.25 (precise) .  Loses game:     	---       	Black=1      Missed win:     	White=1     	---        Mistake:       	White=5     	Black=6      Inaccurate:     	White=3     	---        OK:         	White=12    	Black=12     Best:        	White=2     	Black=4      Strong:       	White=2     	Black=5      Brilliant:      	---       	Black=1} 1/2-1/2

[Event "Presidents Day IM-Norm 2024"]
[Site "Santa Clara"]
[Date "2024.02.18"]
[Round "5.1"]
[White "Raja Harshit"]
[Black "Yan, Nathan"]
[Result "1/2-1/2"]
[ECO "C78"]
[WhiteElo "2508"]
[BlackElo "2311"]
[Annotator "TA"]
[PlyCount "80"]
[EventDate "2024.02.13"]
[EventType "tourn"]
[EventCountry "USA"]
[SourceTitle "playchess.com"]
[Source "ChessBase"]
[SourceQuality "1"]
[TimeControl "5400+30"]

{[%evp 17,80,29,37,26,4,16,21,9,20,-18,18,16,12,18,34,42,43,41,41,42,40,44,47,36,37,8,41,42,106,27,27,35,35,10,11,0,16,0,15,5,14,0,13,10,17,18,14,0,25,31,24,16,18,13,68,16,31,0,0,0,0,0,0,0,0]} 1. e4 {[%emt 0:01:39]} e5 {[%emt 0:08:14]} 2. Nf3 {[%emt 0:00:08]} Nc6 {[%emt 0:00:31]} 3. Bb5 {[%emt 0:00:07]} a6 {[%emt 0:00:25]} 4. Ba4 {[%emt 0:00:05]} Nf6 {[%emt 0:00:13]} 5. O-O {[%emt 0:00:09]} b5 {[%emt 0:00:14]} 6. Bb3 {[%emt 0:00:08]} Bc5 {[%emt 0:00:07]} 7. c3 {[%emt 0:00:05]} d6 {[%emt 0:00:12]} 8. d4 {[%emt 0:00:08]} Bb6 {[%emt 0:00:10]} 9. a4 {[%emt 0:00:06][%cal Ba2a4,Ba4a5][%mdl 32]} Rb8 {[%emt 0:00:14]} 10. a5 {[%emt 0:00:23]} Ba7 {[%emt 0:00:02]} 11. h3 {[%emt 0:00:11]} Bb7 {[%emt 0:00:17]} 12. Be3 {[%emt 0:00:52]} Nxe4 {[%emt 0:00:24]} 13. Nbd2 {[%emt 0:02:02]} (13. d5 {keeps more tension.} Bxe3 14. dxc6 Nxf2 15. Qe2) 13... Nxd2 {[%emt 0:03:36]} 14. Qxd2 {[%emt 0:00:06]} O-O $1 {[%emt 0:15:20]} 15. dxe5 {[%emt 0:00:06]} Bxe3 {[%emt 0:02:17]} 16. Qxe3 {[%emt 0:00:09]} Nxe5 {[%emt 0:01:19]} 17. Nxe5 {[%emt 0:00:06]} dxe5 {[%emt 0:00:14]} 18. Qxe5 {[%emt 0:00:06]} Re8 {[%emt 0:05:09]} 19. Qf4 {[%emt 0:00:05]} Re7 {[%emt 0:06:20]} 20. Rad1 {[%emt 0:04:00]} Qe8 {[%emt 0:02:55]} 21. Qf5 {[%emt 0:01:40]} Qc6 {[%emt 0:09:40]} 22. Bd5 {[%emt 0:05:14]} Qg6 {[%emt 0:00:19]} ({Better is} 22... Qe8 $14) 23. Qf4 {[%emt 0:02:47] White is more active.} (23. Qxg6 $16 hxg6 24. Bxb7 Rxb7 25. Rd8+ Kh7 26. b3) 23... Bxd5 $11 {[%emt 0:00:52]} 24. Rxd5 {[%emt 0:00:02]} Rbe8 {[%emt 0:00:53]} 25. Rc5 {[%emt 0:01:18]} Qd3 {[%emt 0:01:57][%cal Od3f1] [#] White must now prevent ...Qxf1+!} 26. Rc1 {[%emt 0:01:13]} (26. Rxc7 $2 {is the wrong capture.} Qxf1+ 27. Kh2 Rxc7 28. Qxc7 Qxf2 $19) 26... Qd7 {[%emt 0:03:57] Prevents Rc6.} 27. Kh2 {[%emt 0:01:15]} h6 {[%emt 0:03:02]} 28. b4 {[%emt 0:00:05]} c6 {[%emt 0:04:46]} 29. Qf3 {[%emt 0:00:17]} Re6 {[%emt 0:01:42]} 30. Rd1 {[%emt 0:01:54]} Rd6 {[%emt 0:00:58]} 31. Rxd6 {[%emt 0:00:04]} Qxd6+ {[%emt 0:00:08]} 32. Qg3 {[%emt 0:00:04]} Qxg3+ {[%emt 0:03:54]} 33. Kxg3 {[%emt 0:00:03][%mdl 4096] Endgame. KR-KR} Re6 {[%emt 0:00:14]} 34. Kf4 {[%emt 0:00:09] Threatening Re5.} Kf8 {[%emt 0:02:04]} 35. Re5 {[%emt 0:01:41] [#] Threatens to win with Rxe6.} Rd6 {[%emt 0:06:18]} ({Black should play} 35... Ke7 $11) 36. h4 {[%emt 0:01:14]} ({White should try} 36. Ke3 $14) 36... Rd3 $1 {[%emt 0:01:22]} 37. Re3 {[%emt 0:01:42]} (37. Rc5 $5 Rd6 $8 38. c4 $11) 37... Rd2 {[%emt 0:01:14] The position is equal.} 38. Kf3 {[%emt 0:00:44]} Rd5 {[%emt 0:02:39]} 39. g4 {[%emt 0:00:57]} Rd2 {[%emt 0:01:53]} 40. h5 {[%emt 0:00:38]} c5 {[%emt 0:02:41] Weighted Error Value: White=0.18 (very precise) /Black=0.11 (very precise) .  Mistake:       	White=2     	Black=2      Inaccurate:     	White=3     	Black=2      OK:         	White=5     	Black=13     Best:        	White=1     	Black=2      Strong:       	---       	Black=2} 1/2-1/2

[Event "Presidents Day IM-Norm 2024"]
[Site "Santa Clara"]
[Date "2024.02.18"]
[Round "5.2"]
[White "Vatsal Singhania"]
[Black "Bansal, Advay"]
[Result "0-1"]
[ECO "B92"]
[WhiteElo "2252"]
[BlackElo "2253"]
[Annotator "TA"]
[PlyCount "48"]
[EventDate "2024.02.13"]
[EventType "tourn"]
[EventCountry "USA"]
[SourceTitle "playchess.com"]
[Source "ChessBase"]
[SourceQuality "1"]
[TimeControl "5400+30"]

{[%evp 19,48,10,8,5,6,10,18,0,0,0,0,0,0,-209,-107,-176,-164,-430,-409,-422,-406,-413,-405,-605,-628,-911,-907,-2127,-2054,-2156,-2172]} 1. e4 {[%emt 0:00:49]} c5 {[%emt 0:00:09]} 2. Nf3 {[%emt 0:00:05]} d6 {[%emt 0:00:08]} 3. d4 {[%emt 0:00:03]} cxd4 {[%emt 0:00:30]} 4. Nxd4 {[%emt 0:00:30]} Nf6 {[%emt 0:00:00]} 5. Nc3 {[%emt 0:00:00]} a6 {[%emt 0:00:00]} 6. Be2 {[%emt 0:00:00]} e5 {[%emt 0:00:08]} 7. Nf3 {[%emt 1:32:33]} Be7 {[%emt 0:00:14]} 8. Bg5 {[%emt 0:00:00]} Be6 {[%emt 0:00:14]} 9. Bxf6 {[%emt 0:00:00]} Bxf6 {[%emt 0:00:08]} 10. O-O {[%emt 0:00:00]} O-O {[%emt 0:00:12]} 11. Qd2 {[%emt 0:00:00]} Qc7 {[%emt 0:01:12]} 12. Rfd1 {[%emt 0:00:00]} Be7 {[%emt 0:01:38]} 13. a4 {[%emt 0:00:00] The position is equal.} Nd7 {[%emt 0:05:04][%cal Bb8d7,Bd7f6,Bf6g4,Bg4f2][%mdl 32]} 14. Ng5 {[%emt 0:00:00]} Nf6 {[%emt 0:04:26]} 15. Nxe6 {[%emt 0:00:00]} fxe6 {[%emt 0:00:03]} 16. b3 $2 {[%emt 0:00:00] [#]} (16. Qd3 $11) 16... Kh8 {[%emt 0:08:46]} (16... d5 $1 $19 {And now ...Bb4 would win.} 17. exd5 Bb4) 17. Qe3 {[%emt 0:00:00]} (17. Bf3 $17) 17... Rac8 $19 {[%emt 0:07:14]} 18. Bc4 $2 {[%emt 0:00:00]} (18. Nb1) 18... Ng4 $1 {[%emt 0:04:55][%csl LRe3,LRf2]} 19. Qe2 {[%emt 0:00:00]} Nxf2 {[%emt 1:04:59] ...Qc5 is the strong threat. White is weak on the dark squares} (19... Rxf2 $2 20. Qxg4 Rxc2 21. Ne2 $18 (21. Bxe6 Qb6+ 22. Kh1 R8xc3 $14)) 20. Rf1 {[%emt 0:00:00]} d5 {[%emt 0:00:00]} (20... Bh4 21. g3 Qa5 22. Na2 $11) 21. exd5 {[%emt 0:00:00]} (21. Rxf2 $142 Bc5 (21... dxc4 $2 22. Rxf8+ Rxf8 23. Na2 $19) 22. Nd1 Bxf2+ (22... dxc4 $2 23. b4 $19) 23. Nxf2 dxc4 24. b4) 21... Bc5 {[%emt 0:00:00] Black is clearly winning.} 22. d6 {[%emt 0:00:00]} Qxd6 {[%emt 0:00:00]} ({Stronger than} 22... Bxd6 23. Rxf2 Rxf2 24. Kxf2 $14 (24. Qxf2 $2 {loses.} Bc5 $19)) 23. Na2 {[%emt 0:00:00]} e4 {[%emt 0:00:00] [#] ( -> ...Ng4+)} 24. g3 {[%emt 0:00:00]} e3 {[%emt 0:00:00] Weighted Error Value: White=1.21/Black=0.11 (very precise) .  Loses game:     	White=1     	---        Mistake:       	White=3     	Black=1      Inaccurate:     	White=1     	---        OK:         	White=5     	Black=6      Best:        	---       	Black=1} 0-1

[Event "Presidents Day IM-Norm 2024"]
[Site "Santa Clara"]
[Date "2024.02.18"]
[Round "5.3"]
[White "Guo, Ethan"]
[Black "Rodi, Luis Ernesto"]
[Result "1-0"]
[ECO "C77"]
[WhiteElo "2099"]
[BlackElo "2196"]
[Annotator "RC"]
[PlyCount "89"]
[EventDate "2024.02.13"]
[EventType "tourn"]
[EventCountry "USA"]
[SourceTitle "playchess.com"]
[Source "ChessBase"]
[SourceQuality "1"]
[TimeControl "5400+30"]

1. e4 {[%emt 0:01:51]} e5 {[%emt 0:03:42]} 2. Nf3 {[%emt 0:00:08]} Nc6 {[%emt 0:00:06]} 3. Bb5 {[%emt 0:00:05]} a6 {[%emt 0:00:15]} 4. Ba4 {[%emt 0:00:06]} Nf6 {[%emt 0:00:34]} 5. d3 {[%emt 0:00:10]} d6 {[%emt 0:00:39]} 6. c4 {[%emt 0:00:57]} Bd7 {[%emt 0:00:22]} 7. Nc3 {[%emt 0:00:14]} g6 {[%emt 0:00:36]} 8. O-O {[%emt 0:00:24]} Bg7 {[%emt 0:00:09]} 9. Re1 {[%emt 0:06:46]} O-O {[%emt 0:00:21]} 10. Bxc6 {[%emt 0:00:37]} bxc6 {[%emt 0:01:30]} 11. d4 {[%emt 0:01:42]} exd4 {[%emt 0:00:18]} 12. Nxd4 {[%emt 0:00:23]} Re8 {[%emt 0:00:31]} 13. Bg5 {[%emt 0:02:34]} h6 {[%emt 0:01:36]} 14. Bh4 {[%emt 0:01:44]} c5 {[%emt 0:02:12]} 15. Nb3 {[%emt 0:02:55]} g5 {[%emt 0:01:12]} 16. Bg3 {[%emt 0:01:11]} Ng4 {[%emt 0:00:32]} 17. Rc1 {[%emt 0:01:10]} Be6 {[%emt 0:01:14]} 18. Na5 {[%emt 0:03:20]} Qd7 {[%emt 0:02:45]} 19. h4 {[%emt 0:03:35]} Ne5 {[%emt 0:05:13]} 20. hxg5 {[%emt 0:00:27]} hxg5 {[%emt 0:00:14]} 21. b3 {[%emt 0:02:09]} Rab8 {[%emt 0:15:52]} 22. Qd2 {[%emt 0:01:06]} g4 {[%emt 0:02:02]} 23. Bxe5 {[%emt 0:03:35]} Bxe5 {[%emt 0:00:25]} 24. Qg5+ {[%emt 0:00:17]} Kf8 {[%emt 0:02:41]} 25. Nd5 {[%emt 0:02:45]} c6 {[%emt 0:02:53]} 26. Nf6 {[%emt 0:00:40]} Bxf6 {[%emt 0:02:40]} 27. Qxf6 {[%emt 0:00:12]} Qc7 {[%emt 0:00:09]} 28. Qc3 {[%emt 0:02:52]} Ke7 {[%emt 0:00:08]} 29. e5 {[%emt 0:01:22]} Rh8 {[%emt 0:01:17]} 30. exd6+ {[%emt 0:00:41]} Qxd6 {[%emt 0:00:52]} 31. Qe5 {[%emt 0:00:15]} Rbd8 {[%emt 0:07:15]} 32. Qg5+ {[%emt 0:02:30]} Ke8 {[%emt 0:01:43]} 33. g3 {[%emt 0:00:16]} Rd7 {[%emt 0:03:37]} 34. Qxg4 {[%emt 0:01:45]} Kd8 {[%emt 0:01:23]} 35. Qf3 {[%emt 0:01:35]} Rg8 {[%emt 0:06:45]} 36. Nb7+ {[%emt 0:01:30]} Rxb7 {[%emt 0:00:05]} 37. Rcd1 {[%emt 0:00:11]} Bd5 {[%emt 0:00:15]} 38. cxd5 {[%emt 0:00:15]} Rb4 {[%emt 0:01:31]} 39. dxc6 {[%emt 0:00:19]} Rd4 {[%emt 0:00:06]} 40. Rxd4 {[%emt 0:00:10]} cxd4 {[%emt 0:00:16]} 41. Qxf7 {[%emt 0:01:27]} Rf8 {[%emt 0:02:34]} 42. Qb7 {[%emt 0:03:28]} d3 {[%emt 0:01:14]} 43. Re7 {[%emt 0:01:00]} Qxc6 {[%emt 0:01:03]} 44. Qxc6 {[%emt 0:00:13]} Kxe7 {[%emt 0:00:05]} 45. Qe4+ {[%emt 0:00:05]} 1-0

[Event "Presidents Day IM-Norm 2024"]
[Site "Santa Clara"]
[Date "2024.02.18"]
[Round "5.5"]
[White "Stevens, Adam B"]
[Black "Cardoso Cardoso, Jose Gabriel"]
[Result "0-1"]
[ECO "E11"]
[WhiteElo "1878"]
[BlackElo "2477"]
[Annotator "RC"]
[PlyCount "152"]
[EventDate "2024.02.13"]
[EventType "tourn"]
[EventCountry "USA"]
[SourceTitle "playchess.com"]
[Source "ChessBase"]
[SourceQuality "1"]
[TimeControl "5400+30"]

1. d4 {[%emt 0:00:01]} Nf6 {[%emt 0:01:13]} 2. c4 {[%emt 0:00:07]} e6 {[%emt 0:00:14]} 3. Nf3 {[%emt 0:00:10]} d5 {[%emt 0:00:09]} 4. g3 {[%emt 0:00:08]} Bb4+ {[%emt 0:01:58]} 5. Bd2 {[%emt 0:00:08]} Be7 {[%emt 0:00:37]} 6. Bg2 {[%emt 0:00:16]} c6 {[%emt 0:00:10]} 7. Qc2 {[%emt 0:03:15]} Nbd7 {[%emt 0:00:28]} 8. O-O {[%emt 0:00:17]} Ne4 {[%emt 0:00:14]} 9. Be3 {[%emt 0:04:09]} Nd6 {[%emt 0:01:36]} 10. c5 {[%emt 0:03:52]} Ne4 {[%emt 0:04:36]} 11. Nc3 {[%emt 0:01:30]} f5 {[%emt 0:00:16]} 12. Nd2 {[%emt 0:03:36]} e5 {[%emt 0:05:27]} 13. b4 {[%emt 0:03:11]} Bf6 {[%emt 0:02:19]} 14. Nb3 {[%emt 0:03:03]} O-O {[%emt 0:02:56]} 15. f3 {[%emt 0:03:12]} Nxc3 {[%emt 0:01:46]} 16. Qxc3 {[%emt 0:00:05]} Qe7 {[%emt 0:02:22]} 17. Rae1 {[%emt 0:01:48]} Qf7 {[%emt 0:03:24]} 18. dxe5 {[%emt 0:06:45]} Bxe5 {[%emt 0:01:05]} 19. Bd4 {[%emt 0:01:13]} Bxd4+ {[%emt 0:00:44]} 20. Qxd4 {[%emt 0:02:08]} f4 {[%emt 0:00:28]} 21. e4 {[%emt 0:02:22]} fxg3 {[%emt 0:04:47]} 22. hxg3 {[%emt 0:00:47]} Nf6 {[%emt 0:05:20]} 23. e5 {[%emt 0:06:50]} Nh5 {[%emt 0:00:07]} 24. Qh4 {[%emt 0:00:36]} Qg6 {[%emt 0:09:26]} 25. Kh2 {[%emt 0:05:06]} Rf5 {[%emt 0:00:46]} 26. Qd8+ {[%emt 0:11:16]} Rf8 {[%emt 0:00:28]} 27. Qh4 {[%emt 0:00:33]} b6 {[%emt 0:04:34]} 28. e6 {[%emt 0:02:59]} Bxe6 {[%emt 0:01:10]} 29. Rxe6 {[%emt 0:03:37]} Qxe6 {[%emt 0:00:07]} 30. Qxh5 {[%emt 0:00:14]} Qe3 {[%emt 0:03:10]} 31. Qh4 {[%emt 0:02:26]} bxc5 {[%emt 0:00:42]} 32. bxc5 {[%emt 0:00:31]} Rab8 {[%emt 0:06:36]} 33. g4 {[%emt 0:08:35]} Rbe8 {[%emt 0:06:46]} 34. Qf2 {[%emt 0:01:41]} Qf4+ {[%emt 0:00:09]} 35. Qg3 {[%emt 0:01:42]} Re2 {[%emt 0:01:05]} 36. Qxf4 {[%emt 0:03:22]} Rxf4 {[%emt 0:00:01]} 37. Na5 {[%emt 0:00:37]} Rf6 {[%emt 0:02:12]} 38. Rb1 {[%emt 0:02:01]} Rxa2 {[%emt 0:01:06]} 39. Rb8+ {[%emt 0:00:23]} Kf7 {[%emt 0:14:00]} 40. Rb7+ {[%emt 0:00:39]} Kg6 {[%emt 0:00:01]} 41. Rxa7 {[%emt 0:00:32]} d4 {[%emt 0:04:07]} 42. Nxc6 {[%emt 0:02:48]} Rxa7 {[%emt 0:00:05]} 43. Nxa7 {[%emt 0:00:12]} d3 {[%emt 0:00:04]} 44. Nb5 {[%emt 0:05:24]} Rf4 {[%emt 0:00:09]} 45. Kg3 {[%emt 0:03:16]} Rc4 {[%emt 0:02:43]} 46. Bf1 {[%emt 0:00:51]} d2 {[%emt 0:00:07]} 47. Be2 {[%emt 0:01:04]} Rxc5 {[%emt 0:00:08]} 48. Nd4 {[%emt 0:03:09]} Rd5 {[%emt 0:01:15]} 49. Ne6 {[%emt 0:00:31]} Kf6 {[%emt 0:00:45]} 50. Nf4 {[%emt 0:00:45]} d1=Q {[%emt 0:00:07]} 51. Bxd1 {[%emt 0:00:12]} Rxd1 {[%emt 0:00:04]} 52. Nh5+ {[%emt 0:00:23]} Kf7 {[%emt 0:00:06]} 53. Nf4 {[%emt 0:00:08]} g6 {[%emt 0:00:21]} 54. Ne2 {[%emt 0:00:34]} Rd3 {[%emt 0:00:23]} 55. Nf4 {[%emt 0:00:09]} Ra3 {[%emt 0:00:34]} 56. Ne2 {[%emt 0:00:38]} Kf6 {[%emt 0:00:09]} 57. Nf4 {[%emt 0:00:48]} g5 {[%emt 0:01:35]} 58. Ne2 {[%emt 0:01:32]} Ke5 {[%emt 0:00:28]} 59. Kf2 {[%emt 0:00:12]} Rb3 {[%emt 0:01:21]} 60. Ng1 {[%emt 0:01:30]} Kd4 {[%emt 0:00:43]} 61. Ne2+ {[%emt 0:00:19]} Kc4 {[%emt 0:01:02]} 62. f4 {[%emt 0:00:45]} Kd5 {[%emt 0:01:14]} 63. fxg5 {[%emt 0:01:07]} Ke4 {[%emt 0:09:55]} 64. Ng3+ {[%emt 0:00:00]} Kf4 {[%emt 0:00:00]} 65. Nh5+ {[%emt 0:00:27]} Kxg5 {[%emt 0:00:00]} 66. Ng3 {[%emt 0:00:31]} Kxg4 {[%emt 0:00:00]} 67. Ne4 {[%emt 0:00:06]} Kf4 {[%emt 0:00:00]} 68. Nf6 {[%emt 0:00:09]} Rb2+ {[%emt 0:00:00]} 69. Ke1 {[%emt 0:00:12]} h6 {[%emt 0:00:00]} 70. Kf1 {[%emt 0:00:25]} Kf3 {[%emt 0:00:00]} 71. Kg1 {[%emt 0:00:01]} Rd2 {[%emt 0:00:00]} 72. Nh5 {[%emt 0:00:22]} Rd6 {[%emt 0:00:00]} 73. Kh2 {[%emt 0:00:07]} Kg4 {[%emt 0:00:00]} 74. Ng7 {[%emt 0:00:07]} Kg5 {[%emt 0:00:00]} 75. Kg3 {[%emt 0:00:10]} Kg6 {[%emt 0:00:00]} 76. Ne8 {[%emt 0:00:06]} Rc6 {[%emt 0:06:30]} 0-1